bitfinex/quotes_ETHUSD_20240711
["timestamp","ask_amount","ask_price","bid_price","bid_amount"]
[1720682269423,0.3360793,3119.5,3118.5,0.30323]
[1720682269424,1.11126915,3119.3,3118.5,0.30323]
[1720682269614,1.11132416,3119.2,3118.5,3.30323]
[1720682269823,1.11132416,3119.1,3118.5,3.30323]
[1720682270018,1.11132416,3119.0,3118.5,3.30323]
[1720682270221,1.11132416,3118.9,3118.6,0.53206569]
[1720682270423,0.3360793,3119.5,3118.6,0.53206569]
[1720682270644,1.11126135,3119.4,3118.6,0.53206569]
[1720682270916,0.3360793,3119.5,3118.6,0.53206569]
[1720682270917,1.11126135,3119.3,3118.6,0.53206569]
[1720682271147,1.11126135,3119.2,3118.6,0.53206569]
[1720682271415,1.11126135,3119.1,3118.7,0.38352957]
[1720682271551,0.3360793,3119.5,3118.8,2.552]
[1720682271758,1.11110396,3119.4,3118.8,2.552]
[1720682272068,0.44992067,3120.2,3118.8,2.552]
[1720682272366,1.45611019,3120.1,3118.9,0.29355296]
[1720682272718,1.11111812,3120.0,3118.9,0.29355296]
[1720682272956,1.11111812,3120.0,3118.8,2.552]
[1720682275066,1.11111812,3120.0,3119.2,2.002]
[1720682275228,0.44992067,3120.2,3119.4,2.453]
[1720682275422,0.44992067,3120.2,3119.6,2.002]
[1720682277128,0.44992067,3120.2,3119.6,2.06610111]
[1720682277432,0.1139027,3120.2,3120.1,2.002]
[1720682278274,2.474,3121.8,3120.1,4.9048]
[1720682278484,1.11058862,3121.7,3120.2,3.0]
[1720682278677,1.11058862,3121.6,3120.2,3.0]
[1720682278976,7.8224,3121.5,3119.4,9.51751644]
[1720682279131,1.89304835,3121.4,3119.5,1.50175164]
[1720682279334,1.11080835,3121.3,3119.5,0.55]
[1720682280236,2.3218,3121.1,3119.5,0.16]
[1720682280458,1.11080835,3121.0,3119.5,0.16]
[1720682280664,5.7118,3120.9,3119.5,0.16]
[1720682280885,2.4537,3120.7,3119.5,0.16]
[1720682281185,1.11080835,3120.6,3119.5,0.16]
[1720682281586,2.4537,3120.7,3119.5,2.162]
[1720682281777,2.4537,3121.2,3119.9,2.002]
[1720682282019,1.11079794,3121.1,3119.9,2.002]
[1720682282187,2.002,3122.0,3120.0,0.2002]
[1720682282414,1.11072387,3121.9,3120.8,1.95040271]
[1720682282622,0.1139027,3123.4,3120.8,1.95040271]
[1720682282623,0.1139027,3123.4,3120.9,3.19161245]
[1720682282817,0.1139027,3123.4,3121.1,2.2547]
[1720682282818,1.10996621,3123.3,3121.1,2.2547]
[1720682282959,1.10996621,3123.2,3121.2,1.05630549]
[1720682283148,1.10996621,3123.3,3121.3,0.63110055]
[1720682283371,2.3183,3123.1,3121.4,0.55]
[1720682283587,2.3183,3123.1,3121.2,3.0]
[1720682283588,1.11011522,3123.0,3121.2,3.0]
[1720682283796,5.7083,3122.8,3121.1,3.0]
[1720682284010,1.11036603,3122.7,3120.7,0.06407398]
[1720682284197,1.79223263,3122.6,3120.8,0.7947174]
[1720682284401,0.6818666,3122.6,3120.9,0.06406629]
[1720682284552,2.3183,3122.8,3121.0,0.55]
[1720682284803,2.3183,3122.8,3120.8,0.85877839]
[1720682286052,2.3183,3122.8,3120.9,0.0640663]
[1720682286374,2.3183,3122.8,3121.0,0.55]
[1720682286584,2.3183,3122.8,3121.1,0.06406778]
[1720682286778,1.34212486,3122.7,3121.2,0.55]
[1720682286985,1.11035161,3122.6,3120.9,0.55]
[1720682287183,0.23183,3122.7,3120.8,0.2447174]
[1720682287373,0.23183,3122.7,3121.1,2.3633]
[1720682287672,0.255013,3122.6,3121.2,0.79273691]
[1720682287899,0.255013,3122.6,3121.2,3.79273691]
[1720682288763,6.4949027,3123.4,3121.2,3.79273691]
[1720682288764,0.1139027,3123.4,3121.3,2.42736176]
[1720682288960,0.1139027,3123.4,3121.4,3.203]
[1720682289287,0.1139027,3123.4,3121.8,2.653]
[1720682289473,0.1139027,3123.4,3122.3,2.2597]
[1720682289666,0.1139027,3123.4,3122.4,0.61402593]
[1720682289868,0.1139027,3123.4,3122.5,0.58737259]
[1720682290102,0.1139027,3123.4,3122.6,0.61402507]
[1720682290456,0.1139027,3123.4,3122.7,2.4442]
[1720682290690,0.1139027,3123.4,3122.8,0.55]
[1720682291010,0.1139027,3123.4,3122.8,3.61402975]
[1720682291210,0.1139027,3123.4,3122.9,0.90582298]
[1720682291401,0.1139027,3123.4,3123.0,0.6140281]
[1720682291901,0.1139027,3123.4,3122.8,3.0]
[1720682292142,0.1139027,3123.4,3122.5,0.58737259]
[1720682292768,0.01799998,3124.1,3123.2,2.653]
[1720682292980,0.01799998,3124.1,3123.3,3.2653]
[1720682293214,0.01799998,3124.1,3123.3,0.2653]
[1720682293501,0.01799998,3124.1,3122.9,3.0]
[1720682293704,0.01799998,3124.1,3123.0,0.55]
[1720682294024,0.01799998,3124.1,3122.7,3.55]
[1720682294185,0.01799998,3124.1,3122.8,3.0]
[1720682294374,0.01799998,3124.1,3122.9,0.55]
[1720682294607,0.01799998,3124.1,3123.0,0.4190294]
[1720682294766,0.01799998,3124.1,3122.7,3.0]
[1720682294958,0.01799998,3124.1,3122.6,3.0]
[1720682295190,0.01799998,3124.1,3122.5,3.58737259]
[1720682295500,0.01799998,3124.1,3122.7,0.06403341]
[1720682295878,0.01799998,3124.1,3122.5,3.58737259]
[1720682295879,0.01799998,3124.1,3122.8,2.71702608]
[1720682296112,0.01799998,3124.1,3122.9,3.82170261]
[1720682296612,0.01799998,3124.1,3122.9,3.27170261]
[1720682296911,0.01799998,3124.1,3122.5,3.58737259]
[1720682297064,0.01799998,3124.1,3122.6,0.55]
[1720682297695,0.01799998,3124.1,3122.6,0.16]
[1720682297909,2.3914,3124.0,3122.6,0.16]
[1720682298490,5.7724,3124.0,3122.6,0.16]
[1720682298713,0.01799998,3124.1,3122.6,0.16]
[1720682298714,2.4711,3123.8,3122.6,0.16]
[1720682300521,6.381,3123.8,3122.6,0.16]
[1720682300672,2.3832,3123.7,3122.6,0.16]
[1720682301003,3.381,3123.4,3122.6,0.16]
[1720682301223,5.3832,3123.3,3122.6,0.16]
[1720682301371,0.87642,3123.2,3122.6,0.16]
[1720682301743,2.3774,3123.1,3122.6,0.16]
[1720682301868,5.3774,3123.1,3122.6,0.16]
[1720682302711,8.7584,3123.1,3122.6,0.16]
[1720682303021,5.7791,3122.8,3121.5,7.06361644]
[1720682303361,5.7791,3122.8,3121.2,0.24273691]
[1720682303362,5.7791,3122.6,3121.2,0.24273691]
[1720682303514,8.0413453,3122.5,3120.8,7.06361644]
[1720682303680,6.8894453,3122.4,3120.1,7.06361644]
[1720682303919,2.3981,3122.2,3119.6,2.653]
[1720682304119,1.1103453,3122.1,3119.7,0.06408503]
[1720682304266,0.68894453,3122.0,3119.8,0.3357954]
[1720682304654,0.68894453,3122.0,3119.8,0.2717085]
[1720682304821,1.11065002,3121.9,3119.8,0.2717085]
[1720682305110,3.68894453,3122.0,3119.8,0.2717085]
[1720682305333,3.68894453,3122.0,3119.9,0.06408828]
[1720682305334,1.11066598,3121.9,3119.9,0.06408828]
[1720682305515,1.29062703,3121.8,3119.9,0.06408828]
[1720682305901,2.411,3121.7,3120.0,0.06408814]
[1720682306507,2.411,3121.7,3120.0,2.71708814]
[1720682306677,2.411,3121.7,3120.1,3.0]
[1720682306878,0.68894453,3122.0,3120.2,0.06408375]
[1720682307083,2.411,3122.2,3120.5,2.39]
[1720682307310,2.411,3122.2,3120.9,2.653]
[1720682307509,2.411,3122.2,3121.0,0.61407119]
[1720682307697,2.411,3122.2,3121.0,3.61407119]
[1720682308340,2.411,3122.2,3121.0,3.0]
[1720682308633,0.2411,3122.1,3121.0,0.3]
[1720682308841,0.2411,3122.1,3120.7,0.06407652]
[1720682309197,0.2411,3122.1,3120.5,2.39]
[1720682309394,0.2411,3122.1,3120.6,0.55]
[1720682309629,0.2411,3122.1,3120.6,3.55]
[1720682310642,0.2411,3122.1,3120.7,0.06407936]
[1720682310815,2.411,3122.2,3120.8,0.36140794]
[1720682311033,2.411,3122.2,3120.9,0.61406958]
[1720682312032,2.411,3122.2,3120.9,3.26706958]
[1720682312267,5.344,3123.1,3121.0,3.0]
[1720682312410,1.11030797,3123.0,3121.1,0.0640634]
[1720682312606,1.75573877,3122.9,3121.2,0.85640634]
[1720682312822,1.11030797,3122.8,3121.3,0.06406339]
[1720682313049,1.11030797,3122.7,3121.4,0.55]
[1720682313227,1.11030797,3122.6,3121.5,0.06406335]
[1720682313556,0.6454308,3122.9,3121.5,0.06406335]
[1720682313759,1.11026391,3122.8,3121.5,0.06406335]
[1720682313917,1.28583338,3122.7,3121.5,0.06406335]
[1720682314107,1.11026391,3122.6,3121.5,0.06406335]
[1720682314515,2.4907,3122.5,3121.2,0.30640634]
[1720682314768,1.11030656,3122.4,3121.2,0.30640634]
[1720682314929,1.11030656,3122.4,3120.6,3.0]
[1720682314930,1.11030656,3122.4,3120.6,3.06406992]
[1720682315121,1.11030656,3122.4,3120.7,0.55]
[1720682315317,1.11030656,3122.4,3120.8,0.06407117]
[1720682315516,1.11030656,3122.4,3120.9,0.55]
[1720682315916,1.11030656,3122.4,3120.7,0.55]
[1720682316124,0.36010066,3122.3,3120.8,0.355]
[1720682316363,1.11040182,3122.2,3120.9,0.55]
[1720682316658,0.36010066,3122.3,3120.9,0.55]
[1720682316813,1.11040278,3122.2,3120.9,0.55]
[1720682317018,0.36010066,3122.3,3120.9,0.55]
[1720682317267,1.11040248,3122.2,3120.9,0.55]
[1720682317418,0.36010066,3122.3,3120.9,0.55]
[1720682318116,1.11040819,3122.2,3120.8,0.355]
[1720682318329,1.11040819,3122.1,3120.8,0.355]
[1720682318565,1.11040819,3122.2,3120.8,0.355]
[1720682318867,1.11046293,3122.1,3120.8,0.355]
[1720682319041,0.36010066,3122.3,3120.8,0.355]
[1720682319219,1.1104636,3122.2,3120.8,0.355]
[1720682319425,0.36010066,3122.3,3120.5,7.06361644]
[1720682319426,2.2967,3122.0,3120.5,7.06361644]
[1720682319619,2.2967,3122.0,3120.0,5.1354]
[1720682319620,1.11046821,3121.9,3120.0,5.1354]
[1720682319852,2.2967,3122.0,3120.1,0.06407909]
[1720682320036,1.11053012,3121.9,3120.2,0.55]
[1720682320228,2.2967,3122.0,3120.2,0.55]
[1720682320425,1.11052383,3121.9,3120.3,0.06407909]
[1720682320630,2.2967,3122.0,3120.4,0.55]
[1720682320836,1.34018756,3121.9,3120.2,0.55]
[1720682321151,1.11051756,3121.8,3120.2,0.55]
[1720682321367,0.22967,3121.9,3120.2,0.55]
[1720682321556,1.11053789,3121.8,3120.2,0.55]
[1720682321721,0.22967,3121.9,3120.2,0.55]
[1720682322094,1.11053374,3121.8,3120.3,0.36140791]
[1720682322227,0.22967,3121.9,3120.4,0.55]
[1720682322432,1.11053833,3121.8,3120.4,0.61407908]
[1720682322625,0.22967,3121.9,3120.4,0.61407908]
[1720682322626,1.11053833,3121.7,3120.4,0.61407908]
[1720682322950,0.22967,3121.9,3120.4,0.61407908]
[1720682323132,1.36320245,3121.8,3120.4,0.55]
[1720682323463,1.11056545,3121.7,3120.3,0.36140791]
[1720682323651,1.11056545,3121.7,3120.0,2.4824]
[1720682324642,1.11066301,3121.6,3120.0,2.4824]
[1720682324841,1.11066303,3121.5,3120.1,0.61408704]
[1720682325055,0.252637,3121.8,3120.1,3.55]
[1720682325229,1.11066457,3121.7,3120.1,3.55]
[1720682325432,1.11066457,3121.7,3120.2,0.60324]
[1720682326525,2.4353,3121.6,3120.2,0.60324]
[1720682326866,1.11066457,3121.5,3120.2,0.60324]
[1720682328109,2.4353,3121.6,3119.7,3.0]
[1720682328289,1.1107264,3121.4,3119.8,0.55]
[1720682328473,1.1107264,3121.3,3119.8,0.55]
[1720682328649,1.44655082,3121.5,3119.8,0.55]
[1720682328981,1.1107264,3121.4,3119.8,0.55]
[1720682329151,1.1107264,3121.4,3119.9,0.355]
[1720682329357,2.4214,3121.3,3119.6,2.2678]
[1720682329539,1.1107264,3121.2,3119.6,2.2678]
[1720682331065,1.1107264,3121.2,3119.7,0.6141013]
[1720682331288,1.1107264,3121.2,3119.8,0.06409202]
[1720682331494,1.110808,3121.1,3119.9,0.9114092]
[1720682331702,1.110808,3121.0,3119.9,0.9114092]
[1720682331911,1.110808,3120.9,3119.7,3.0]
[1720682332219,1.110808,3120.8,3119.6,2.2678]
[1720682332419,1.110808,3121.2,3119.7,0.55]
[1720682332576,1.110808,3121.1,3119.7,3.55]
[1720682332783,1.110808,3121.2,3119.8,0.58178]
[1720682332979,2.3523,3120.9,3119.7,3.0]
[1720682333325,2.3523,3120.9,3119.1,9.48921644]
[1720682333326,1.110808,3120.8,3119.1,9.48921644]
[1720682334602,1.11105615,3120.7,3119.2,3.0]
[1720682334804,2.3523,3120.9,3119.3,1.24892164]
[1720682334805,1.11105615,3120.6,3119.3,1.24892164]
[1720682335019,1.11105615,3120.7,3119.3,1.24892164]
[1720682335234,1.11105615,3120.6,3119.3,1.24892164]
[1720682335527,0.23523,3120.8,3119.3,1.24892164]
[1720682335528,1.11105615,3120.5,3119.3,1.24892164]
[1720682335704,2.4017,3120.4,3119.3,1.24892164]
[1720682335899,1.11105615,3120.3,3119.3,1.24892164]
[1720682337220,1.11105615,3120.3,3118.8,3.0]
[1720682337430,1.11105615,3120.3,3118.7,3.0]
[1720682337431,4.49205615,3120.3,3118.7,3.0]
[1720682337638,3.52955615,3120.2,3118.2,2.4642]
[1720682337839,1.11105615,3120.1,3118.2,2.4642]
[1720682338008,2.4185,3120.2,3118.2,2.4642]
[1720682338009,1.46427629,3120.0,3118.3,0.95278164]
[1720682338200,1.11132067,3119.9,3118.3,0.95278164]
[1720682339400,2.3874,3119.8,3118.3,0.95278164]
[1720682339732,1.11132067,3119.7,3118.3,0.95278164]
[1720682339932,1.11132067,3119.7,3118.2,2.4642]
[1720682340408,1.11132067,3119.7,3118.3,0.06413431]
[1720682340612,1.11132067,3119.7,3118.3,3.06413431]
[1720682341066,1.11133751,3119.6,3118.3,3.06413431]
[1720682341330,1.11133751,3119.5,3118.3,3.06413431]
[1720682341504,1.11133751,3119.7,3118.4,1.10283343]
[1720682341901,1.11133751,3119.7,3118.5,0.0641258]
[1720682342527,1.11133751,3119.7,3118.6,0.55]
[1720682342845,2.47,3120.6,3118.6,0.55]
[1720682343025,1.11112924,3120.5,3118.7,2.4958]
[1720682343201,1.46924216,3120.4,3118.8,0.85458]
[1720682343397,1.11112924,3120.3,3118.8,0.85458]
[1720682343622,1.11112924,3120.3,3118.8,3.85458]
[1720682343936,1.11105021,3120.2,3118.8,3.85458]
[1720682344161,1.11105021,3120.1,3118.8,3.85458]
[1720682344295,0.33590566,3120.3,3118.9,0.635038]
[1720682344498,1.11102443,3120.2,3119.0,0.55]
[1720682344712,2.47,3120.6,3119.0,0.55]
[1720682344913,1.11101553,3120.5,3119.0,0.55]
[1720682345214,1.11101553,3120.4,3119.0,0.55]
[1720682345416,1.11101553,3120.5,3119.1,0.06410595]
[1720682345621,1.46911708,3120.5,3119.2,0.55]
[1720682345825,1.11101553,3120.4,3119.3,0.06410587]
[1720682346024,1.11101553,3120.3,3119.4,0.55]
[1720682346217,1.11101553,3120.2,3119.5,0.06410582]
[1720682346411,2.47,3120.6,3119.5,0.06410582]
[1720682346616,1.11099089,3120.5,3119.5,0.06410582]
[1720682346814,3.0,3121.4,3119.5,0.06410582]
[1720682346815,1.11099089,3120.4,3119.6,3.51012058]
[1720682347058,0.33589021,3120.7,3119.7,0.06409155]
[1720682347409,2.2779,3121.5,3119.8,0.06408799]
[1720682347503,1.4465325,3121.4,3119.9,0.55]
[1720682347900,1.11069273,3121.3,3120.0,2.33558647]
[1720682348106,1.11069273,3121.2,3120.1,0.83855865]
[1720682348311,0.33583977,3121.4,3120.2,0.06408358]
[1720682348520,1.11062291,3121.3,3120.3,0.55]
[1720682348854,0.33580577,3121.8,3120.4,0.06407908]
[1720682348922,1.1105455,3121.7,3120.5,0.55]
[1720682349132,1.1105455,3121.6,3120.6,0.06407863]
[1720682349314,1.1105455,3121.5,3120.7,0.55]
[1720682349521,0.33580577,3121.8,3120.8,0.06407862]
[1720682349522,1.1105455,3121.4,3120.8,0.06407862]
[1720682349738,0.16,3121.5,3120.7,0.55]
[1720682349922,1.11051908,3121.4,3120.7,0.55]
[1720682350246,0.16,3121.5,3120.7,0.55]
[1720682350600,1.11050429,3121.4,3120.7,0.55]
[1720682350803,0.16,3121.5,3120.7,0.55]
[1720682351373,0.11,3121.5,3120.7,0.55]
[1720682351714,1.11050371,3121.4,3120.7,0.55]
[1720682352037,0.11,3121.5,3120.7,0.55]
[1720682352229,1.11050318,3121.4,3120.7,0.55]
[1720682352447,0.11,3121.5,3120.7,0.55]
[1720682352656,1.11051524,3121.4,3120.7,0.55]
[1720682352862,0.11,3121.5,3120.9,2.3147]
[1720682353172,0.11,3121.5,3121.0,0.85194791]
[1720682353587,0.11,3121.5,3121.0,3.85194791]
[1720682353928,0.11,3121.5,3121.0,3.78787757]
[1720682354125,0.11,3121.5,3121.1,0.06406271]
[1720682354358,0.11,3121.5,3121.2,0.55]
[1720682354517,0.11,3121.5,3121.3,0.06405862]
[1720682354855,0.11,3121.5,3121.4,0.55]
[1720682355260,0.11,3121.5,3121.4,2.8265]
[1720682355554,0.11,3121.5,3121.4,6.11555586]
[1720682357348,0.11,3121.5,3121.4,3.83905586]
[1720682357569,0.11,3121.5,3121.4,0.83905586]
[1720682357854,0.11,3121.5,3121.4,3.55]
[1720682358148,0.11,3121.5,3121.4,0.55]
[1720682358357,0.11,3121.5,3121.4,0.06406027]
[1720682358529,0.11,3121.5,3121.4,0.61406027]
[1720682360060,0.11,3121.5,3121.4,0.55]
[1720682360265,0.11,3121.5,3121.1,3.0]
[1720682360266,0.11,3121.5,3121.2,0.55]
[1720682360473,0.11,3121.5,3120.6,2.3922]
[1720682360636,0.11,3121.5,3120.8,0.94558164]
[1720682361190,0.11,3121.5,3120.1,7.35217509]
[1720682361378,0.11,3121.5,3120.1,0.28855865]
[1720682361531,0.11,3121.5,3120.2,0.06408128]
[1720682361927,0.11,3121.5,3120.1,0.66875667]
[1720682362867,0.11,3121.5,3120.1,3.66875667]
[1720682363065,0.11,3121.5,3120.2,0.88713378]
[1720682363588,2.2571,3121.4,3120.2,0.88713378]
[1720682363869,2.2571,3121.4,3120.1,0.28855865]
[1720682363870,2.2571,3121.4,3120.3,0.55]
[1720682364053,2.2571,3121.4,3120.0,0.55]
[1720682366581,1.11064982,3121.3,3119.6,2.653]
[1720682366723,1.4474248,3121.2,3119.7,0.2653]
[1720682366930,1.11064982,3121.1,3119.4,9.40271644]
[1720682367158,1.11064982,3121.1,3119.6,2.653]
[1720682367329,2.2571,3121.4,3119.7,0.06408482]
[1720682367528,1.11068012,3121.3,3119.7,0.06408485]
[1720682367740,1.44745813,3121.2,3119.8,0.33579334]
[1720682368039,0.33677801,3121.2,3119.8,0.33579334]
[1720682368198,2.2571,3121.4,3119.9,0.55]
[1720682368340,1.11064616,3121.3,3120.0,0.06408483]
[1720682368637,1.11064616,3121.2,3120.1,0.55]
[1720682368840,1.11064616,3121.3,3120.2,0.06408483]
[1720682369062,1.11064616,3121.3,3120.3,0.61408483]
[1720682369252,0.11,3121.5,3120.3,3.61408483]
[1720682372274,1.11047485,3121.4,3120.3,3.61408483]
[1720682372573,0.11,3121.5,3120.3,3.61408483]
[1720682372737,1.1104801,3121.4,3120.3,3.61408483]
[1720682372940,0.11,3121.5,3120.4,0.58964848]
[1720682373249,1.1104794,3121.4,3120.5,0.61407333]
[1720682373443,1.1104794,3121.3,3120.5,0.61407333]
[1720682373758,1.1104794,3121.2,3120.5,0.61407333]
[1720682374155,0.11,3121.5,3120.5,0.55]
[1720682374285,1.11055668,3121.1,3120.5,0.96396485]
[1720682374446,0.11,3121.5,3120.5,0.96396485]
[1720682374642,1.11058561,3121.4,3120.5,0.96396485]
[1720682374885,1.11058561,3121.3,3120.5,0.96396485]
[1720682375043,1.11058561,3121.4,3120.5,0.96396485]
[1720682375242,1.11058561,3121.3,3120.6,0.06407976]
[1720682375469,1.11058561,3121.4,3120.7,0.55]
[1720682375667,3.42898561,3121.3,3119.8,7.06361644]
[1720682375871,1.11058561,3121.2,3119.8,7.06361644]
[1720682377155,1.11058561,3121.2,3119.9,3.0]
[1720682377364,0.34289856,3121.1,3119.9,3.0]
[1720682377592,1.45382453,3121.1,3119.9,3.0]
[1720682377750,1.11092597,3121.0,3119.9,3.0]
[1720682378347,2.2838,3120.9,3120.0,0.55]
[1720682378660,1.11092597,3120.8,3120.0,0.55]
[1720682378855,1.11092597,3120.7,3120.0,0.55]
[1720682379058,1.11092597,3120.6,3120.0,0.55]
[1720682379262,1.11092597,3120.5,3120.0,0.55]
[1720682379452,1.11092597,3120.4,3119.9,3.0]
[1720682379650,1.11092597,3120.3,3119.4,3.0]
[1720682379845,2.2838,3120.9,3119.5,0.55]
[1720682379846,1.11092597,3120.2,3119.5,0.55]
[1720682380049,1.11092597,3120.1,3119.6,0.355]
[1720682380271,2.2838,3120.9,3119.7,0.55]
[1720682380481,1.11093634,3120.8,3119.7,0.55]
[1720682380654,1.11093634,3120.7,3119.7,0.55]
[1720682380843,1.11094919,3120.6,3119.7,0.55]
[1720682381045,1.11094927,3120.5,3119.7,0.55]
[1720682381263,2.2838,3120.9,3119.7,0.55]
[1720682381264,1.11094927,3120.4,3119.7,0.55]
[1720682381464,1.11094927,3120.3,3119.7,0.55]
[1720682381787,1.11094927,3120.2,3119.7,0.55]
[1720682381985,1.11094927,3120.1,3119.7,0.55]
[1720682382186,2.2838,3120.9,3119.7,0.55]
[1720682382353,1.33930117,3120.8,3119.7,0.55]
[1720682382550,1.11092117,3120.7,3119.7,0.55]
[1720682382783,1.11092117,3120.6,3119.7,0.55]
[1720682383088,1.11092117,3120.7,3119.4,3.0]
[1720682383384,1.11092117,3120.6,3119.4,3.0]
[1720682383579,0.22838,3120.8,3119.5,1.00636164]
[1720682383580,1.36213917,3120.7,3119.5,1.00636164]
[1720682383798,1.11092117,3120.6,3119.5,1.00636164]
[1720682384483,1.11101621,3120.5,3119.5,1.00636164]
[1720682384650,1.11101621,3120.4,3119.2,3.06410681]
[1720682384855,1.11101621,3120.4,3119.3,0.55]
[1720682385168,1.11101621,3120.3,3119.3,0.55]
[1720682385363,1.11101621,3120.2,3119.3,0.55]
[1720682385559,1.11101621,3120.1,3119.4,0.06409749]
[1720682385752,2.2838,3120.9,3119.5,0.55]
[1720682385954,1.11092571,3120.8,3119.6,0.06409695]
[1720682386276,1.11092571,3120.7,3119.7,0.55]
[1720682386479,7.55,3121.5,3119.7,0.55]
[1720682386480,1.11092571,3120.6,3119.9,2.4933]
[1720682386711,2.473,3121.4,3119.9,2.4933]
[1720682386712,1.11075833,3120.5,3120.0,0.61408754]
[1720682386888,2.473,3121.4,3120.1,0.61073875]
[1720682387227,1.11068306,3121.3,3120.2,0.61408643]
[1720682387539,1.11068306,3121.2,3120.3,0.06408643]
[1720682387854,1.11066458,3121.1,3120.4,0.55]
[1720682388108,1.11066458,3121.0,3120.4,0.55]
[1720682388288,1.11066458,3120.9,3120.3,0.06408643]
[1720682388484,2.473,3121.4,3120.4,0.55]
[1720682388485,1.11066458,3120.8,3120.4,0.55]
[1720682388714,0.33582163,3120.9,3120.4,0.55]
[1720682389018,1.11066458,3120.8,3120.4,0.55]
[1720682389188,1.11066458,3120.7,3120.4,0.55]
[1720682389506,0.33582163,3120.9,3120.4,0.55]
[1720682389742,1.11066103,3120.8,3120.4,0.55]
[1720682389882,1.11066103,3120.7,3120.5,0.06408647]
[1720682390076,1.11067798,3120.6,3120.4,0.55]
[1720682390276,0.33582163,3120.9,3120.3,0.55]
[1720682390471,1.11066279,3120.8,3120.3,0.61408483]
[1720682390702,1.11066279,3120.7,3120.3,0.61408483]
[1720682390888,1.11066279,3120.6,3120.3,0.61408483]
[1720682391211,0.33582163,3120.9,3120.3,0.61408483]
[1720682391584,1.1106638,3120.8,3120.3,0.61408483]
[1720682391785,0.33582163,3120.9,3120.3,0.61408483]
[1720682391786,1.1106638,3120.7,3120.3,0.61408483]
[1720682392114,1.1106638,3120.6,3120.3,0.55]
[1720682392338,0.33582163,3120.9,3120.3,0.55]
[1720682392632,1.11065608,3120.8,3120.2,0.55]
[1720682392777,1.11065608,3120.7,3120.2,0.55]
[1720682392980,1.11065608,3120.8,3120.2,0.61408584]
[1720682393614,1.11065608,3120.8,3120.2,0.55]
[1720682394532,1.11065608,3120.8,3120.2,0.61408533]
[1720682394694,1.11064349,3120.7,3120.2,0.55]
[1720682395045,0.33582163,3120.9,3120.3,0.06408336]
[1720682395248,1.11062228,3120.8,3120.4,0.55]
[1720682395399,0.33582163,3120.9,3120.5,0.26080834]
[1720682395722,0.33582163,3120.9,3120.7,2.4037]
[1720682395893,0.33582163,3120.9,3120.8,0.06406984]
[1720682396088,0.11,3121.5,3120.8,3.61406984]
[1720682396354,0.11,3121.5,3121.1,1.994]
[1720682396625,0.11,3121.5,3121.2,0.55]
[1720682396801,0.11,3121.5,3121.2,3.55]
[1720682398196,0.11,3121.5,3121.4,2.3363]
[1720682398406,0.11,3121.5,3121.4,2.8863]
[1720682398633,0.11,3121.5,3121.4,6.53633588]
[1720682401248,0.11,3121.5,3121.4,4.20003588]
[1720682401539,0.11,3121.5,3121.4,1.20003588]
[1720682401746,0.11,3121.5,3121.4,0.55]
[1720682401915,0.11,3121.5,3121.1,0.55]
[1720682405700,2.2841,3122.2,3120.9,0.80117698]
[1720682406026,2.2841,3122.2,3120.5,0.26080834]
[1720682406027,1.11043069,3122.1,3120.5,0.26080834]
[1720682406338,1.11043069,3122.0,3120.5,0.32487808]
[1720682406507,2.2841,3122.2,3120.5,0.32487808]
[1720682406508,1.11043069,3122.1,3120.5,0.32487808]
[1720682406693,0.33945307,3122.0,3120.6,0.28172781]
[1720682406915,1.11043069,3121.9,3120.6,0.28172781]
[1720682407094,1.11051561,3121.8,3120.7,0.55]
[1720682407332,1.11051561,3121.7,3120.7,0.55]
[1720682407514,0.33945307,3122.0,3120.7,0.55]
[1720682407515,1.11051561,3121.6,3120.7,0.55]
[1720682407756,1.11051561,3121.5,3120.7,0.55]
[1720682407925,0.33945307,3122.0,3120.7,0.55]
[1720682408228,1.11046738,3121.9,3120.7,0.55]
[1720682408327,1.11046738,3121.8,3120.7,0.55]
[1720682408666,1.11046738,3121.7,3120.7,0.55]
[1720682408829,1.11046738,3121.6,3120.7,0.55]
[1720682409034,1.11046738,3121.5,3120.7,0.55]
[1720682409219,0.67517958,3122.0,3120.7,0.55]
[1720682409420,1.11046656,3121.9,3120.7,0.95925362]
[1720682409724,3.42176656,3121.8,3120.6,0.28172781]
[1720682409935,1.11046656,3121.7,3120.6,0.28172781]
[1720682410487,0.33572651,3122.0,3121.4,2.2892]
[1720682410764,2.3181,3123.2,3121.9,1.994]
[1720682410930,2.3181,3123.2,3122.0,1.27783005]
[1720682410931,0.33562476,3122.9,3122.0,1.27783005]
[1720682411127,2.3181,3123.2,3122.0,4.82783005]
[1720682411330,1.10996008,3123.1,3122.0,4.82783005]
[1720682411546,1.10996008,3123.0,3122.0,4.82783005]
[1720682411747,1.10996008,3123.1,3122.1,0.68218301]
[1720682411955,1.10996008,3123.1,3122.2,0.97567872]
[1720682412132,1.10996008,3123.1,3122.2,0.55]
[1720682413730,1.11001338,3123.0,3122.3,0.06404597]
[1720682413925,1.11001338,3122.9,3122.3,0.06404597]
[1720682414155,1.11001338,3122.8,3122.2,0.55]
[1720682414364,2.3181,3123.2,3122.2,0.55]
[1720682414566,1.11000709,3123.1,3122.2,0.55]
[1720682414871,1.11000709,3123.0,3122.2,0.55]
[1720682415038,1.11000709,3123.1,3122.2,0.55]
[1720682415380,1.4528178,3123.1,3122.2,0.55]
[1720682415675,1.11000709,3123.0,3122.0,0.55]
[1720682416960,1.11000709,3123.0,3121.9,3.0]
[1720682417143,0.34281071,3123.1,3121.5,3.69910045]
[1720682417476,2.3181,3123.2,3121.6,1.88246494]
[1720682417477,1.37622063,3123.0,3121.6,1.88246494]
[1720682417633,1.37622063,3123.0,3121.6,4.88246494]
[1720682418150,1.37622063,3123.0,3121.7,3.0]
[1720682418362,1.37622063,3123.0,3121.8,0.55]
[1720682418573,1.37622063,3123.0,3121.6,4.8184105]